bitfinex-derivatives/quotes_ETHF0:USTF0_20250112
["timestamp","ask_amount","ask_price","bid_price","bid_amount"]
[1736697798373,0.21317,3285.1,3285.0,2.11421027]
[1736697799064,0.21319,3284.8,3284.7,2.11421027]
[1736697802676,0.9056,3285.1,3284.7,2.32741027]
[1736697802984,0.21319,3284.8,3284.7,2.32741027]
[1736697803676,0.9056,3285.1,3284.7,2.32741027]
[1736697803677,0.21319,3284.9,3284.7,2.11421027]
[1736697803879,0.21319,3284.9,3284.8,0.21319]
[1736697804080,0.21318,3285.0,3284.9,0.21319]
[1736697804283,9.17696205,3285.6,3284.7,2.64722027]
[1736697804580,3.2078,3285.6,3285.5,2.32736027]
[1736697805276,3.2078,3285.6,3285.5,42.91421027]
[1736697805479,0.21316,3285.3,3285.2,2.11421027]
[1736697806882,0.21316,3285.3,3285.2,2.32738027]
[1736697807383,0.21316,3285.3,3285.2,2.11421027]
[1736697813688,9.18095391,3285.6,3285.2,2.11421027]
[1736697813896,9.18095391,3285.6,3285.5,2.32736027]
[1736697813897,9.39410391,3285.6,3285.5,2.32736027]
[1736697814596,3.42095,3285.6,3285.5,2.32736027]
[1736697816594,3.2078,3285.6,3285.5,2.32736027]
[1736697818084,6.18627391,3286.0,3285.5,2.11421027]
[1736697818389,0.21312,3286.0,3285.9,2.32733027]
[1736697821285,0.21312,3286.0,3285.9,2.11421027]
[1736697822596,3.2078,3286.1,3285.6,2.11421027]
[1736697822796,3.42094,3285.7,3285.6,2.11421027]
[1736697823095,3.42094,3285.7,3285.3,0.4602]
[1736697823096,3.2078,3285.7,3285.3,2.11421027]
[1736697823293,0.21317,3285.1,3285.0,6.83908006]
[1736697823596,3.42097,3285.1,3285.0,6.83908006]
[1736697823792,3.42097,3285.1,3285.0,2.32739027]
[1736697823988,3.2078,3285.1,3285.0,2.32739027]
[1736697824793,3.42097,3285.1,3285.0,2.32739027]
[1736697824992,3.87297,3285.1,3285.0,2.11421027]
[1736697826795,3.2078,3285.1,3285.0,2.11421027]
[1736697826993,3.2078,3285.1,3285.0,2.32739027]
[1736697829387,3.2078,3285.1,3285.0,43.12739027]
[1736697829584,3.42097,3285.1,3285.0,42.91421027]
[1736697830191,3.42097,3285.1,3285.0,2.11421027]
[1736697835496,3.2078,3285.1,3284.8,40.8]
[1736697835701,0.21319,3284.8,3284.7,2.11421027]
[1736697838807,0.21319,3284.8,3284.7,2.32741027]
[1736697839102,0.21319,3284.8,3284.7,2.11421027]
[1736697841503,0.21319,3284.8,3284.7,2.32741027]
[1736697842709,0.8759,3285.0,3284.7,2.11421027]
[1736697843006,0.65188,3285.0,3284.9,0.21319]
[1736697843198,0.4387,3285.0,3284.9,0.21319]
[1736697843399,3.2078,3285.1,3284.9,40.8]
[1736697843604,3.42098,3285.1,3285.0,2.32739027]
[1736697843800,3.42098,3285.1,3285.0,2.78279027]
[1736697843999,3.42098,3285.1,3285.0,2.11421027]
[1736697844213,0.21318,3285.0,3284.9,40.8]
[1736697844607,0.21319,3284.8,3284.7,2.11421027]
[1736697845201,0.67539,3284.8,3284.7,2.11421027]
[1736697847905,1.11039,3284.8,3284.7,2.11421027]
[1736697849606,0.4729,3284.9,3284.7,2.11421027]
[1736697849809,3.2078,3285.1,3285.0,0.21318]
[1736697850103,3.2078,3285.1,3285.0,2.32739027]
[1736697851112,3.42097,3285.1,3285.0,2.11421027]
[1736697851310,3.42097,3285.1,3285.0,2.32739027]
[1736697851514,0.2132,3284.8,3284.7,2.11421027]
[1736697853105,0.2132,3284.8,3284.7,2.32741027]
[1736697853713,0.4565,3285.0,3284.7,2.11421027]
[1736697853908,0.66969,3285.0,3284.7,2.11421027]
[1736697854213,0.66969,3285.0,3284.9,0.21319]
[1736697855209,0.66969,3285.0,3284.7,2.11421027]
[1736697855512,0.4565,3285.0,3284.7,2.11421027]
[1736697855710,0.66969,3285.0,3284.9,0.21319]
[1736697856909,0.4565,3285.0,3284.9,0.21319]
[1736697857111,3.42098,3285.1,3285.0,0.21318]
[1736697857317,3.2078,3285.1,3285.0,2.32739027]
[1736697859612,0.68776,3285.3,3285.2,0.21317]
[1736697859807,0.4746,3285.3,3285.2,0.21317]
[1736697860618,3.2078,3285.5,3285.4,0.21316]
[1736697860810,3.2078,3285.5,3285.4,2.32737027]
[1736697861005,3.42095,3285.5,3285.4,2.11421027]
[1736697861516,3.42095,3285.5,3285.4,2.32737027]
[1736697863220,3.42095,3285.5,3285.4,2.11421027]
[1736697864310,3.2078,3285.5,3285.1,2.11421027]
[1736697864512,0.21317,3285.2,3285.1,2.11421027]
[1736697865112,0.4423,3285.4,3285.3,0.21316]
[1736697865410,0.4666,3285.7,3285.1,2.11421027]
[1736697865616,0.21315,3285.6,3284.9,0.53298]
[1736697865812,5.97315391,3285.5,3285.4,0.21315]
[1736697866416,0.21316,3285.4,3285.3,0.21316]
[1736697866612,6.18631391,3285.5,3285.4,0.4549]
[1736697866811,0.21316,3285.5,3285.4,2.78227027]
[1736697867214,3.2078,3285.6,3285.4,2.78227027]
[1736697867611,3.2078,3285.6,3285.4,2.56911027]
[1736697867812,0.21315,3285.5,3285.4,2.78226027]
[1736697868612,3.2078,3285.6,3285.4,2.78226027]
[1736697868917,3.42095,3285.6,3285.5,0.21315]
[1736697870423,3.2078,3285.6,3285.5,0.21315]
[1736697870720,3.2078,3285.6,3285.5,0.4702]
[1736697870721,3.42094,3285.6,3285.5,0.4702]
[1736697870922,3.42094,3285.6,3285.5,0.68335]
[1736697871315,3.42094,3285.6,3285.5,0.4702]
[1736697871715,0.21315,3285.5,3285.4,2.56911027]
[1736697872417,0.21315,3285.5,3285.4,2.78227027]
[1736697872816,3.2078,3285.6,3285.4,2.78227027]
[1736697873123,3.42094,3285.6,3285.5,0.21315]
[1736697873323,0.21315,3285.5,3285.4,2.78226027]
[1736697875119,0.21315,3285.6,3285.5,0.21315]
[1736697875312,0.9089,3285.7,3285.4,2.56911027]
[1736697875513,0.21314,3285.6,3285.5,0.21315]
[1736697876221,0.21315,3285.5,3285.4,2.78226027]
[1736697877628,0.21315,3285.5,3285.4,2.56911027]
[1736697877822,0.21315,3285.5,3285.4,2.78227027]
[1736697878221,0.21315,3285.5,3285.4,2.11421027]
[1736697881625,0.21315,3285.5,3285.4,2.32737027]
[1736697882431,0.21315,3285.6,3285.5,0.21315]
[1736697882728,0.9089,3285.7,3285.5,0.21315]
[1736697883028,0.21314,3285.6,3285.5,0.67705]
[1736697883430,0.9089,3285.7,3285.5,0.4639]
[1736697883730,1.12204,3285.7,3285.6,0.21314]
[1736697884624,0.9089,3285.7,3285.5,0.4639]
[1736697884823,0.21314,3285.6,3285.5,0.67705]
[1736697885022,0.21314,3285.6,3285.5,0.4639]
[1736697885227,0.21315,3285.5,3285.4,2.32736027]
[1736697885627,0.9089,3285.7,3285.4,2.32736027]
[1736697885828,0.21315,3285.5,3285.4,2.32736027]
[1736697886328,0.21315,3285.5,3285.4,2.11421027]
[1736697886531,0.21317,3285.2,3285.1,43.12738027]
[1736697887032,3.2078,3285.3,3285.1,43.12738027]
[1736697887232,3.42097,3285.3,3285.2,0.21317]
[1736697888330,4.1167,3285.7,3285.1,42.91421027]
[1736697888728,0.21317,3285.3,3285.2,0.21316]
[1736697888925,0.21316,3285.4,3285.3,0.21316]
[1736697890429,0.21317,3285.3,3285.2,0.21316]
[1736697891229,4.1167,3285.7,3285.1,42.91421027]
[1736697891430,4.1167,3285.7,3285.3,0.21315]
[1736697891431,0.21316,3285.4,3285.3,0.21315]
[1736697893131,0.21315,3285.6,3285.5,0.21314]
[1736697893734,0.21315,3285.6,3285.5,0.68904]
[1736697894541,0.21315,3285.6,3285.5,0.4759]
[1736697894741,0.21315,3285.5,3285.4,2.11421027]
[1736697895040,0.21315,3285.5,3285.4,2.32737027]
[1736697896540,10.08985391,3285.7,3285.2,0.4759]
[1736697896743,0.21316,3285.3,3285.2,0.68907]
[1736697897332,0.21316,3285.4,3285.3,0.21316]
[1736697898239,0.21315,3285.5,3285.4,0.21315]
[1736697898445,0.21315,3285.5,3285.4,2.32736027]
[1736697903141,3.2078,3285.6,3285.5,0.21315]
[1736697903342,9.18095391,3285.6,3285.5,0.21315]
[1736697903544,9.39409391,3285.6,3285.5,0.21315]
[1736697904147,9.18095391,3285.6,3285.4,2.11421027]
[1736697904339,0.21315,3285.5,3285.3,0.21316]
[1736697904643,0.21316,3285.4,3285.3,0.21316]
[1736697905034,0.21316,3285.3,3285.2,4.93803979]
[1736697905240,0.21316,3285.3,3285.2,4.72486979]
[1736697905940,3.2078,3285.6,3284.9,4.72486979]
[1736697906146,0.21318,3285.0,3284.9,4.72486979]
[1736697906646,0.66668,3285.0,3284.9,4.72486979]
[1736697907043,5.99166368,3285.0,3284.9,0.21319]
[1736697907244,5.99166368,3285.0,3284.9,1.16679]
[1736697907845,5.99166368,3285.0,3284.9,41.96679]
[1736697908033,5.99166368,3285.4,3284.9,46.47846979]
[1736697908238,5.99166368,3285.4,3285.3,2.32737027]
[1736697909444,9.19946368,3285.6,3285.5,0.21315]
[1736697909942,5.99166368,3285.6,3285.5,41.01315]
[1736697910440,5.99166368,3286.0,3285.5,45.73801979]
[1736697910647,5.99166368,3286.0,3285.9,2.32733027]
[1736697911437,3.42091,3286.1,3286.0,0.21312]
[1736697911641,3.2078,3286.1,3286.0,0.21312]
[1736697911943,3.42091,3286.1,3286.0,0.21312]
[1736697912145,3.2078,3286.1,3286.0,0.21312]
[1736697912750,3.42091,3286.1,3286.0,0.21312]
[1736697912943,3.2078,3286.1,3286.0,0.21312]
[1736697918946,3.2078,3286.4,3286.0,0.21312]
[1736697919145,3.2078,3286.4,3286.3,2.32731027]
[1736697920839,3.42089,3286.4,3286.3,2.11421027]
[1736697921244,3.2078,3286.4,3286.3,2.32731027]
[1736697921950,3.6881,3286.4,3286.3,2.32731027]
[1736697924051,3.90119,3286.4,3286.3,2.32731027]
[1736697924451,3.6881,3286.4,3286.3,2.32731027]
[1736697926155,3.90119,3286.4,3286.3,2.32731027]
[1736697927261,3.90119,3286.4,3286.3,2.11421027]
[1736697927461,3.6881,3286.4,3286.0,2.11421027]
[1736697927666,0.21311,3286.1,3286.0,2.11421027]
[1736697927853,0.21311,3286.1,3286.0,2.32733027]
[1736697928062,0.21311,3286.1,3286.0,2.11421027]
[1736697928254,0.4386,3286.3,3285.7,2.11421027]
[1736697928255,0.21313,3285.8,3285.7,2.11421027]
[1736697928464,0.21314,3285.6,3285.5,4.72486979]
[1736697929766,0.21314,3285.6,3285.4,9.20151496]
[1736697929767,0.21314,3285.6,3285.4,2.32736027]
[1736697929964,0.21314,3285.6,3285.4,2.11421027]
[1736697930261,0.21315,3285.5,3285.4,2.11421027]
[1736697931063,0.9012,3285.7,3285.1,2.11421027]
[1736697931259,3.2078,3285.3,3284.8,2.11421027]
[1736697931567,3.42099,3284.9,3284.8,2.11421027]
[1736697932670,3.2078,3284.9,3284.8,2.32740027]
[1736697933266,3.42099,3284.9,3284.8,2.11421027]
[1736697940466,3.2078,3284.9,3284.8,2.11421027]
[1736697940772,3.2078,3284.9,3284.8,2.32740027]
[1736697943270,0.21316,3285.3,3285.2,0.21317]
[1736697943571,0.21316,3285.3,3285.2,2.32738027]
[1736697943771,3.6466,3285.4,3285.2,2.11421027]
[1736697943973,3.85976,3285.4,3285.3,0.21316]
[1736697944565,3.2078,3285.4,3285.3,0.21316]
[1736697944764,3.2078,3285.4,3285.3,1.59886]
[1736697948475,3.42096,3285.4,3285.3,1.14846]
[1736697948675,3.2078,3285.4,3285.3,1.14846]
[1736697950479,3.42096,3285.4,3285.3,1.14846]
[1736697950676,0.21316,3285.3,3285.2,0.21316]
[1736697950877,0.21317,3285.2,3285.1,2.32738027]
[1736697951273,0.67297,3285.3,3285.2,0.21317]
[1736697952573,0.21317,3285.2,3285.1,2.11421027]
[1736697953178,0.65267,3285.2,3285.1,2.11421027]
[1736697953676,1.09857,3285.2,3285.1,2.11421027]
[1736697954189,0.21319,3284.9,3284.8,2.11421027]
[1736697956675,3.42099,3284.9,3284.8,2.32740027]
[1736697957081,3.2078,3284.9,3284.8,2.32740027]
[1736697964990,3.2078,3285.5,3284.8,4.22842054]
[1736697965288,3.2078,3285.5,3285.4,2.32737027]
[1736697965984,3.42095,3285.5,3285.4,42.91421027]
[1736697966192,3.42095,3285.5,3285.4,2.11421027]
[1736697968181,0.21317,3285.2,3285.1,2.11421027]
[1736697970183,0.21319,3285.0,3284.8,2.32740027]
[1736697970379,3.6589,3284.9,3284.8,2.32740027]
[1736697970585,3.87209,3284.9,3284.8,2.11421027]
[1736697972988,3.87209,3284.9,3284.5,3.42101]
[1736697972989,3.6589,3284.9,3284.5,2.11421027]
[1736697973291,0.21321,3284.6,3284.5,2.11421027]
[1736697973591,0.21323,3284.3,3284.2,2.11421027]
[1736697974187,0.65603,3284.3,3284.2,2.11421027]
[1736697981799,0.21325,3284.0,3283.9,2.11421027]
[1736697981999,3.42105,3284.0,3283.9,2.11421027]
[1736697982390,3.2078,3284.0,3283.9,2.32746027]
[1736697983499,3.2078,3284.0,3283.9,0.21325]
[1736697983801,3.42105,3284.0,3283.9,0.21325]
[1736697984193,3.2078,3284.0,3283.8,2.11421027]
[1736697984392,3.2078,3284.0,3283.4,0.91]
[1736697984393,0.21327,3283.6,3283.5,2.11421027]
[1736697984599,3.42107,3283.6,3283.5,2.32749027]
[1736697984800,3.42107,3283.6,3283.5,2.11421027]
[1736697984997,3.2078,3283.6,3283.4,40.8]
[1736697985191,1.59568,3283.5,3283.4,40.8]
[1736697985602,1.3824,3283.5,3283.3,2.11421027]
[1736697985799,1.59568,3283.5,3283.3,2.32750027]
[1736697986002,0.21329,3283.4,3283.3,2.11421027]
[1736697987501,1.3824,3283.5,3283.3,2.11421027]
[1736697987696,1.3824,3283.5,3283.4,0.21329]
[1736697987902,1.59568,3283.5,3283.3,2.32750027]
[1736697988304,0.21329,3283.4,3283.3,2.11421027]
[1736697989407,5.0,3283.4,3282.9,40.8]
[1736697989611,0.21335,3282.5,3282.3,0.21335]
[1736697989803,0.21335,3282.5,3282.2,2.11421027]
[1736697989999,3.2078,3282.6,3282.3,40.8]
[1736697990201,3.42114,3282.6,3282.4,0.21335]
[1736697990405,3.42114,3282.6,3282.5,2.11421027]
[1736697990607,3.2078,3282.6,3282.1,4.72486979]
[1736697990816,0.21336,3282.3,3282.1,4.93823979]
[1736697991010,0.21336,3282.3,3282.0,2.11421027]
[1736697991011,3.2078,3282.6,3282.0,2.11421027]
[1736697991315,3.2078,3282.6,3282.4,2.11421027]
[1736697991510,3.2078,3282.6,3282.4,2.32756027]
[1736697991819,3.2078,3282.6,3282.5,0.21334]
[1736697992713,3.2078,3282.6,3282.4,2.11421027]
[1736697992714,0.4706,3282.9,3282.4,2.11421027]
[1736697992910,0.4706,3282.9,3282.8,2.11421027]
[1736697994413,0.4706,3282.9,3282.8,2.32753027]
[1736697994619,0.4706,3282.9,3282.8,2.11421027]
[1736697995016,0.4706,3282.9,3282.8,42.91421027]
[1736697995915,0.68392,3282.9,3282.8,40.8]
[1736697996114,0.21334,3282.6,3282.5,2.11421027]
[1736697996619,3.42114,3282.6,3282.5,2.11421027]
[1736697997123,3.2078,3282.6,3282.5,2.32755027]
[1736697998124,3.2078,3282.6,3282.5,2.11421027]
[1736697998626,3.2078,3282.6,3282.5,2.32755027]
[1736698001518,3.42114,3282.6,3282.5,2.11421027]
[1736698001823,3.88834,3282.6,3282.5,2.11421027]
[1736698002624,3.2078,3282.6,3282.5,2.32755027]
[1736698002819,0.4706,3282.9,3282.5,2.11421027]
[1736698003017,0.21332,3282.8,3282.7,0.21333]
[1736698003530,0.21333,3282.7,3282.6,0.68444]
[1736698003720,0.4619,3282.7,3282.2,3.2078]
[1736698003923,0.21335,3282.4,3282.2,0.21336]
[1736698004227,3.2078,3282.5,3282.1,2.11421027]
[1736698004418,0.9153,3282.4,3282.1,2.11421027]
[1736698004618,1.12865,3282.4,3282.3,0.21336]
[1736698004819,0.9153,3282.4,3282.3,0.21336]
[1736698005426,1.12865,3282.4,3282.3,0.21336]
[1736698005633,0.9153,3282.4,3282.3,0.21336]
[1736698006126,1.12865,3282.4,3282.3,0.21336]
[1736698006327,0.9153,3282.4,3282.3,0.21336]
[1736698006529,0.9153,3282.4,3282.1,2.11421027]
[1736698007427,0.21336,3282.2,3282.1,2.11421027]
[1736698008227,0.9153,3282.4,3281.8,2.11421027]
[1736698008431,3.2078,3281.9,3281.8,2.32760027]
[1736698009226,3.6718,3281.9,3281.8,2.32760027]
[1736698010125,3.6718,3281.9,3281.8,2.11421027]
[1736698010126,3.67014676,3281.9,3281.8,2.11421027]
[1736698010430,3.88352676,3281.9,3281.8,2.32760027]
[1736698011332,3.67014676,3281.9,3281.8,2.32760027]
[1736698011936,3.88352676,3281.9,3281.8,2.32760027]
[1736698012228,3.67014676,3281.9,3281.8,2.32760027]
[1736698012432,3.88352676,3281.9,3281.8,2.32760027]
[1736698013521,3.88352676,3281.9,3281.8,2.11421027]
[1736698013927,3.67014676,3281.9,3281.8,2.32760027]
[1736698014331,3.88352676,3281.9,3281.8,2.32760027]
[1736698014829,3.67014676,3281.9,3281.8,2.32760027]
[1736698015029,3.88352676,3281.9,3281.8,2.32760027]
[1736698015726,3.67014676,3281.9,3281.8,2.32760027]
[1736698016926,4.33192676,3281.9,3281.8,2.32760027]
[1736698017125,4.11854676,3281.9,3281.8,2.32760027]
[1736698017535,4.33192676,3281.9,3281.8,2.32760027]
[1736698018525,0.21339,3281.8,3281.7,0.21339]
[1736698018726,4.11854676,3281.9,3281.5,2.11421027]
[1736698019028,4.33192676,3281.9,3281.8,2.32760027]
[1736698019833,3.67014676,3281.9,3281.8,2.32760027]
[1736698020133,3.20614676,3281.9,3281.8,2.32760027]
[1736698020639,3.41952676,3281.9,3281.8,2.32760027]
[1736698021134,3.41952676,3281.9,3281.6,0.2134]
[1736698021135,0.2134,3281.7,3281.6,0.2134]
[1736698021328,0.4538,3281.8,3281.5,2.11421027]
[1736698021529,0.2134,3281.7,3281.6,0.2134]
[1736698023733,0.66719,3281.8,3281.7,0.2134]
[1736698024237,0.4538,3281.8,3281.7,0.2134]
[1736698025035,0.4538,3281.8,3281.5,2.11421027]
[1736698025036,3.20614676,3281.9,3281.8,0.21339]
[1736698025235,3.20614676,3281.9,3281.8,2.32760027]
[1736698026139,3.20614676,3281.9,3281.7,0.21339]
[1736698026344,0.21339,3281.8,3281.7,0.21339]
[1736698026531,0.67629,3281.8,3281.7,0.21339]
[1736698026732,0.2134,3281.7,3281.6,0.2134]
[1736698027336,0.2134,3281.7,3281.5,2.32761027]
[1736698027636,0.2134,3281.7,3281.6,0.2134]
[1736698029331,0.2134,3281.6,3281.5,2.32762027]
[1736698030939,0.21342,3281.3,3281.2,2.32763027]
[1736698031135,3.2078,3281.3,3281.2,2.32764027]
[1736698032138,3.2078,3281.7,3281.4,0.21341]
[1736698032340,0.21341,3281.5,3281.4,0.21341]
[1736698032640,3.2078,3281.7,3281.3,0.4457]
[1736698032841,0.65971,3281.4,3281.3,0.65912]
[1736698033049,0.21342,3281.3,3281.2,2.11421027]
[1736698033354,0.4358,3281.3,3281.2,2.32764027]
[1736698033949,0.64922,3281.3,3281.2,2.32764027]
[1736698034152,0.4358,3281.3,3281.2,2.32764027]
[1736698034539,0.4463,3281.4,3281.3,0.21342]
[1736698034745,3.2078,3281.7,3281.6,0.2134]
[1736698034746,3.8981,3281.7,3281.6,0.2134]
[1736698034946,3.8981,3281.7,3281.6,2.32761027]
[1736698036245,3.8981,3281.7,3281.6,2.11421027]
[1736698036751,0.2134,3281.6,3281.5,0.21341]
[1736698037047,3.6847,3281.7,3281.3,2.11421027]
[1736698037244,0.21341,3281.4,3281.3,2.11421027]
[1736698037448,0.21341,3281.4,3281.3,2.32763027]
[1736698037649,0.21341,3281.6,3281.5,0.21341]
[1736698037849,3.8981,3281.7,3281.6,0.2134]
[1736698038043,3.8981,3281.7,3281.6,2.32761027]
[1736698038346,3.6847,3281.7,3281.5,0.2134]
[1736698038548,3.6847,3281.7,3281.4,1.3947]
[1736698039053,3.8981,3281.7,3281.6,0.2134]
[1736698040046,3.2078,3281.7,3281.6,2.32761027]
[1736698041148,5.99166368,3282.4,3282.3,0.21336]
[1736698041353,5.99166368,3282.4,3282.3,2.32757027]
[1736698041951,3.2078,3282.6,3282.5,0.21334]
[1736698049448,3.2078,3282.6,3282.5,2.32755027]
[1736698049656,3.2078,3283.2,3282.5,5.53535027]
[1736698049956,3.2078,3283.2,3283.1,2.11421027]
[1736698049957,3.4211,3283.2,3283.1,2.11421027]
[1736698050469,0.21331,3283.1,3282.9,0.21331]
[1736698050649,3.2078,3283.2,3282.5,2.11421027]
[1736698050853,0.21334,3282.6,3282.5,2.11421027]
[1736698051055,0.21336,3282.3,3282.2,2.11421027]
[1736698051256,3.42116,3282.3,3282.2,2.11421027]
[1736698051561,3.2078,3282.3,3282.2,2.11421027]
[1736698051761,3.42116,3282.3,3282.2,2.11421027]
[1736698052859,3.2078,3282.3,3282.2,2.11421027]
[1736698053256,3.2078,3282.3,3282.2,2.32757027]
[1736698058860,3.2078,3282.8,3282.7,0.21333]
[1736698059160,3.2078,3282.8,3282.7,43.12754027]
[1736698063166,3.42112,3282.8,3282.7,43.12754027]
[1736698063466,3.6835,3282.8,3282.7,2.32754027]
[1736698064262,3.89682,3282.8,3282.7,2.32754027]
[1736698064463,3.6835,3282.8,3282.7,2.32754027]
[1736698064660,0.4757,3282.8,3282.7,2.32754027]
[1736698065962,3.6835,3282.8,3282.7,2.32754027]
[1736698067367,0.68902,3282.8,3282.3,0.9389]
[1736698067568,0.21334,3282.6,3282.4,2.11421027]
[1736698067766,3.87125,3282.5,3282.4,2.11421027]
[1736698068573,0.21336,3282.2,3282.1,2.11421027]
[1736698068768,3.6579,3282.5,3281.8,40.8]
[1736698068972,0.21338,3281.9,3281.8,42.91421027]
[1736698069164,0.21338,3281.9,3281.8,2.11421027]
[1736698070276,0.21338,3281.9,3281.8,2.32760027]
[1736698070485,0.21338,3281.9,3281.8,2.11421027]
[1736698070681,0.949,3282.1,3281.8,2.11421027]
[1736698070876,0.4792,3282.1,3281.8,2.11421027]
[1736698071178,9.64956368,3282.5,3281.9,0.53346]
[1736698071486,9.64956368,3282.5,3282.4,2.32756027]
[1736698071984,3.6579,3282.5,3282.4,2.32756027]
[1736698072187,3.2078,3282.5,3282.4,2.32756027]
[1736698072683,3.42114,3282.5,3282.4,2.11421027]
[1736698073185,3.42114,3282.5,3282.4,2.32756027]
[1736698073385,3.42114,3282.5,3282.4,2.11421027]
[1736698075188,3.2078,3282.5,3282.4,2.11421027]
[1736698075384,3.2078,3282.5,3282.4,2.32756027]
[1736698080394,3.42112,3282.9,3282.7,0.21332]
[1736698080689,3.2078,3282.9,3282.8,2.32753027]
[1736698083094,0.6751,3283.2,3283.0,0.21331]
[1736698083290,0.6751,3283.2,3283.1,2.11421027]
[1736698084193,0.6751,3283.2,3283.1,2.14031027]
[1736698087293,0.6751,3283.2,3283.1,2.35361027]
[1736698087294,0.4618,3283.2,3283.1,2.35361027]
[1736698087598,0.6751,3283.2,3283.1,2.14031027]
[1736698088586,0.4618,3283.2,3283.1,2.35361027]
[1736698091900,0.6751,3283.2,3283.1,2.35361027]
[1736698092100,0.6751,3283.2,3283.1,2.14031027]
[1736698094001,0.6751,3283.2,3283.1,2.35361027]
[1736698094797,0.4618,3283.2,3283.1,2.35361027]
[1736698096001,0.6751,3283.2,3283.1,0.0261]
[1736698096203,0.21334,3282.6,3282.5,2.11421027]
[1736698096403,3.42114,3282.6,3282.5,2.11421027]
[1736698097504,3.2078,3282.6,3282.2,2.11421027]
[1736698097712,3.2078,3282.6,3282.2,2.32757027]
[1736698097905,0.21336,3282.3,3282.2,2.11421027]
[1736698099013,3.74115,3282.6,3281.9,0.21338]
[1736698099014,3.2078,3282.6,3281.9,2.11421027]
[1736698099310,0.21338,3282.0,3281.9,2.11421027]
[1736698101208,1.3945,3282.1,3281.9,2.11421027]
[1736698101515,0.21338,3282.0,3281.9,2.11421027]
[1736698103019,0.936,3282.1,3281.9,2.32759027]
[1736698103317,0.21338,3282.0,3281.9,2.11421027]
[1736698103508,1.14937,3282.1,3281.9,2.32759027]
[1736698104313,0.936,3282.1,3281.9,2.11421027]
[1736698104614,0.21338,3282.0,3281.9,2.11421027]
[1736698105016,1.14937,3282.1,3281.9,2.11421027]
[1736698105208,1.14937,3282.1,3281.9,2.32759027]
[1736698106210,1.14937,3282.1,3281.9,2.11421027]
[1736698106415,1.14937,3282.1,3282.0,0.21338]
[1736698106416,0.936,3282.1,3282.0,0.21338]
[1736698107111,0.4657,3282.1,3282.0,0.21338]
[1736698107710,3.2078,3282.2,3281.9,2.99951027]
[1736698108015,3.2078,3282.2,3282.0,0.21337]
[1736698108721,3.2078,3282.2,3282.1,0.21337]
[1736698110215,6.91786368,3282.9,3282.1,3.2078]
[1736698110525,7.13118368,3282.9,3282.8,2.32753027]
[1736698110713,6.91786368,3282.9,3282.8,2.32753027]
[1736698110910,3.2078,3283.0,3282.9,0.21332]
[1736698111317,3.42111,3283.0,3282.9,1.15212]
[1736698111517,3.2078,3283.0,3282.9,1.15212]
[1736698118528,3.2078,3283.0,3282.9,0.21332]
[1736698126741,3.2078,3283.0,3282.9,41.01332]
[1736698130437,0.6727,3283.2,3282.9,40.8]
[1736698130633,0.4594,3283.2,3283.1,2.32751027]
[1736698131134,0.6727,3283.2,3283.1,2.32751027]
[1736698131334,0.4594,3283.2,3283.1,2.32751027]
[1736698133344,0.6727,3283.2,3283.1,2.32751027]
[1736698134549,0.4594,3283.2,3283.1,2.32751027]
[1736698135139,0.6727,3283.2,3283.1,2.11421027]
[1736698137746,3.8805,3283.2,3283.1,2.11421027]
[1736698141043,0.21332,3282.9,3282.8,2.11421027]
[1736698143046,0.21334,3282.6,3282.5,2.11421027]
[1736698143247,3.42114,3282.6,3282.5,2.11421027]
[1736698146941,3.2078,3282.6,3282.5,2.32755027]
[1736698149444,3.42114,3282.6,3282.5,2.32755027]
[1736698150653,3.2078,3282.6,3282.5,2.32755027]
[1736698151244,3.42114,3282.6,3282.5,2.32755027]
[1736698151450,3.42114,3282.6,3282.5,2.11421027]
[1736698152151,3.2078,3282.6,3282.2,2.11421027]
[1736698152346,0.21336,3282.3,3282.2,2.11421027]
[1736698154154,6.46896368,3282.5,3281.9,2.11421027]
[1736698154362,0.21338,3282.0,3281.9,2.11421027]
[1736698160260,0.21338,3282.1,3281.9,2.32759027]
[1736698160563,0.21337,3282.1,3281.9,2.32759027]
[1736698160860,0.21337,3282.1,3282.0,0.4702]
[1736698163859,3.42117,3282.2,3282.0,0.68357]
[1736698164066,3.42117,3282.2,3282.1,0.21337]
[1736698164656,3.2078,3282.2,3282.1,0.21337]
[1736698165057,3.42117,3282.2,3282.0,0.4702]
[1736698165259,0.21337,3282.1,3282.0,0.4702]
[1736698167567,0.21337,3282.1,3282.0,0.68358]
[1736698167866,3.42117,3282.2,3282.0,0.68358]
[1736698168865,3.2078,3282.2,3282.0,0.68358]
[1736698169067,0.21337,3282.1,3282.0,0.68358]
[1736698170574,0.21337,3282.1,3282.0,0.4702]
[1736698170772,0.21338,3282.0,3281.9,2.11421027]
[1736698179382,0.21338,3282.0,3281.9,1.00362316]
[1736698197393,6.20504368,3282.0,3281.9,1.00362316]
[1736698200494,0.21338,3282.0,3281.9,1.00362316]
[1736698200699,3.6793,3282.1,3281.5,4.72486979]
[1736698200700,0.2134,3281.6,3281.5,4.72486979]
[1736698200892,0.2134,3281.6,3281.5,5.72849295]
[1736698201090,0.2134,3281.6,3281.5,4.72486979]
[1736698201392,0.673,3281.6,3281.5,4.72486979]
[1736698201892,0.673,3281.6,3281.4,1.00362316]
[1736698201893,0.21341,3281.5,3281.4,1.00362316]
[1736698206399,6.16926114,3281.5,3281.4,1.00362316]
[1736698208301,5.95585114,3281.5,3281.0,0.481]
[1736698208501,0.21343,3281.1,3281.0,0.481]
[1736698209393,3.42123,3281.2,3281.0,0.481]
[1736698209598,3.42123,3281.2,3281.1,1.00362316]
[1736698210299,0.21343,3281.1,3281.0,1.48462316]
[1736698211004,3.2078,3281.2,3281.0,1.48462316]
[1736698211302,3.42123,3281.2,3281.0,1.48462316]
[1736698211902,0.21343,3281.1,3281.0,1.48462316]
[1736698212102,3.2078,3281.2,3281.0,2.48824632]
[1736698212291,0.21343,3281.1,3281.0,2.48824632]
[1736698212595,0.21343,3281.1,3281.0,1.48462316]
[1736698213301,3.2078,3281.2,3281.0,1.48462316]